bitfinex/quotes_SOLUSD_20251117
["timestamp","ask_amount","ask_price","bid_price","bid_amount"]
[1763406194582,13.59223062,130.82,130.79,9.78882769]
[1763406194777,18.12096,130.81,130.78,9.88882769]
[1763406194990,27.07319062,130.81,130.79,0.71]
[1763406195196,8.95223062,130.81,130.78,0.81]
[1763406195399,8.95223062,130.81,130.78,0.1]
[1763406195586,18.12096,130.8,130.79,0.71]
[1763406196212,27.07319062,130.81,130.79,0.71]
[1763406196778,18.12096,130.81,130.79,0.71]
[1763406197209,18.12096,130.79,130.78,0.1]
[1763406197397,27.07319062,130.79,130.78,0.1]
[1763406197594,73.37096,130.79,130.78,0.1]
[1763406197794,81.71319062,130.79,130.78,0.1]
[1763406198580,82.32319062,130.79,130.78,0.1]
[1763406199285,81.71319062,130.79,130.78,0.1]
[1763406199505,31.71319062,130.79,130.78,0.1]
[1763406199721,18.12096,130.79,130.78,0.82]
[1763406200206,77.07319062,130.79,130.78,0.1]
[1763406201026,77.68319062,130.79,130.78,0.1]
[1763406201205,77.07319062,130.79,130.78,0.1]
[1763406201687,77.68319062,130.79,130.78,0.1]
[1763406201884,68.12096,130.79,130.78,0.1]
[1763406202091,77.68319062,130.79,130.78,0.1]
[1763406202304,77.07319062,130.79,130.78,0.1]
[1763406202816,77.68319062,130.79,130.78,0.1]
[1763406203295,77.07319062,130.79,130.78,0.1]
[1763406203497,81.71319062,130.79,130.78,0.1]
[1763406205298,80.97192662,130.79,130.78,0.1]
[1763406205497,81.58192662,130.79,130.78,0.1]
[1763406205692,50.0,130.75,130.74,0.1]
[1763406206021,63.59223062,130.75,130.74,0.1]
[1763406206396,50.0,130.79,130.74,10.60882769]
[1763406206600,8.95223062,130.76,130.74,10.60882769]
[1763406206801,8.95223062,130.75,130.74,10.60882769]
[1763406207004,58.95223062,130.75,130.74,9.88882769]
[1763406207298,58.95223062,130.75,130.74,0.1]
[1763406209214,50.0,130.75,130.74,0.1]
[1763406209430,58.95223062,130.75,130.74,0.1]
[1763406210221,77.07319062,130.75,130.74,0.1]
[1763406210512,27.07319062,130.75,130.74,0.1]
[1763406210896,27.07319062,130.75,130.74,9.88882769]
[1763406211096,27.07319062,130.75,130.74,0.1]
[1763406211297,77.07319062,130.75,130.74,0.1]
[1763406211511,77.68319062,130.75,130.74,0.1]
[1763406211715,77.07319062,130.75,130.74,0.1]
[1763406211908,61.56223062,130.75,130.74,0.1]
[1763406212398,59.56223062,130.75,130.74,0.1]
[1763406213010,50.0,130.71,130.7,0.1]
[1763406213320,58.95223062,130.71,130.7,0.1]
[1763406213697,8.95223062,130.71,130.7,0.1]
[1763406213892,58.95223062,130.71,130.7,0.1]
[1763406214304,27.07319062,130.71,130.7,0.1]
[1763406214910,77.07319062,130.71,130.7,0.1]
[1763406217720,77.68319062,130.71,130.7,0.1]
[1763406220101,50.0,130.67,130.6,8.95223062]
[1763406220305,50.0,130.67,130.59,9.78882769]
[1763406220306,8.95223062,130.64,130.59,9.78882769]
[1763406220506,8.95223062,130.64,130.61,9.78882769]
[1763406221311,8.95223062,130.65,130.61,9.78882769]
[1763406221952,8.95223062,130.64,130.61,9.78882769]
[1763406222441,8.95223062,130.64,130.59,18.74105831]
[1763406222927,8.95223062,130.6,130.54,0.65]
[1763406223312,8.95223062,130.6,130.55,18.74105831]
[1763406223705,8.95223062,130.6,130.55,19.39105831]
[1763406224025,18.12096,130.65,130.59,8.95223062]
[1763406224239,8.95223062,130.67,130.62,18.74105831]
[1763406224421,8.95223062,130.67,130.63,8.95223062]
[1763406224746,27.07319062,130.64,130.55,22.76096]
[1763406225040,31.71319062,130.64,130.6,9.78882769]
[1763406225209,58.95223062,130.63,130.59,9.78882769]
[1763406225411,8.95223062,130.62,130.59,9.78882769]
[1763406225617,18.12096,130.64,130.61,9.78882769]
[1763406225925,2.0,130.69,130.64,9.78882769]
[1763406225926,31.71319062,130.68,130.64,9.78882769]
[1763406226233,18.12096,130.66,130.6,0.65]
[1763406226410,18.12096,130.66,130.62,8.95223062]
[1763406226745,4.64,130.68,130.6,0.65]
[1763406226746,4.64,130.68,130.66,9.78882769]
[1763406226923,4.64,130.68,130.62,9.78882769]
[1763406227238,8.95223062,130.68,130.63,8.95223062]
[1763406227613,18.12096,130.64,130.62,9.78882769]
[1763406228225,18.12096,130.64,130.6,8.95223062]
[1763406228507,18.12096,130.64,130.61,9.78882769]
[1763406228724,27.07319062,130.64,130.61,9.78882769]
[1763406229032,18.12096,130.64,130.61,9.78882769]
[1763406229230,27.07319062,130.64,130.59,8.95223062]
[1763406229406,27.07319062,130.64,130.6,9.78882769]
[1763406230444,18.12096,130.64,130.6,8.95223062]
[1763406230609,18.12096,130.64,130.62,18.74105831]
[1763406231315,18.12096,130.64,130.6,8.95223062]
[1763406231625,27.07319062,130.64,130.6,9.78882769]
[1763406231813,27.07319062,130.64,130.56,5.29]
[1763406232017,18.12096,130.64,130.59,8.95223062]
[1763406232234,4.64,130.63,130.59,8.95223062]
[1763406232432,4.64,130.63,130.57,9.78882769]
[1763406232608,13.59223062,130.63,130.58,8.95223062]
[1763406232813,4.64,130.63,130.59,18.74105831]
[1763406233116,13.59223062,130.63,130.59,9.78882769]
[1763406233433,13.59223062,130.63,130.59,8.95223062]
[1763406233627,18.12096,130.64,130.61,9.78882769]
[1763406233832,59.66223062,130.63,130.59,8.95223062]
[1763406234136,58.95223062,130.63,130.57,9.78882769]
[1763406234354,8.95223062,130.62,130.57,9.78882769]
[1763406234528,8.95223062,130.62,130.58,8.95223062]
[1763406234732,58.95223062,130.63,130.58,8.95223062]
[1763406234914,58.95223062,130.63,130.58,9.60223062]
[1763406235425,58.95223062,130.63,130.59,9.78882769]
[1763406235637,22.76096,130.64,130.59,10.43882769]
[1763406235838,31.71319062,130.64,130.6,8.95223062]
[1763406236223,31.71319062,130.64,130.57,10.43882769]
[1763406236440,31.71319062,130.64,130.6,8.95223062]
[1763406236653,22.76096,130.64,130.58,0.65]
[1763406236828,22.76096,130.64,130.61,9.78882769]
[1763406237134,22.76096,130.64,130.6,9.78882769]
[1763406237135,31.71319062,130.64,130.6,9.78882769]
[1763406237518,22.76096,130.64,130.61,8.95223062]
[1763406237717,18.12096,130.64,130.61,9.60223062]
[1763406238225,18.12096,130.64,130.61,8.95223062]
[1763406238637,18.12096,130.64,130.58,0.65]
[1763406238855,18.12096,130.64,130.62,9.78882769]
[1763406239156,18.12096,130.64,130.6,18.74105831]
[1763406240413,18.12096,130.64,130.58,0.65]
[1763406240414,27.07319062,130.64,130.58,0.65]
[1763406240634,18.12096,130.64,130.6,9.78882769]
[1763406240826,27.07319062,130.64,130.6,9.78882769]
[1763406241023,8.95223062,130.62,130.58,9.78882769]
[1763406241321,8.95223062,130.62,130.55,0.65]
[1763406241322,4.64,130.61,130.56,9.78882769]
[1763406241536,4.64,130.61,130.58,9.78882769]
[1763406242244,54.64,130.61,130.58,9.78882769]
[1763406242449,50.0,130.57,130.53,5.65056818]
[1763406242758,13.59223062,130.56,130.53,5.65056818]
[1763406243050,4.64,130.56,130.53,5.65056818]
[1763406243348,4.64,130.55,130.53,5.65056818]
[1763406243646,22.76096,130.56,130.54,9.78882769]
[1763406243824,18.12096,130.56,130.54,9.78882769]
[1763406244141,18.12096,130.56,130.53,5.65056818]
[1763406244519,5.35,130.55,130.53,5.65056818]
[1763406245024,55.35,130.55,130.53,5.65056818]
[1763406245233,0.71,130.54,130.53,5.65056818]
[1763406246055,54.64,130.55,130.53,5.65056818]
[1763406246347,55.35,130.55,130.53,5.65056818]
[1763406246826,27.78319062,130.54,130.53,5.65056818]
[1763406247016,18.12096,130.54,130.53,5.65056818]
[1763406247218,50.0,130.57,130.53,6.30056818]
[1763406247418,63.59223062,130.56,130.53,5.65056818]
[1763406247616,0.71,130.55,130.53,5.65056818]
[1763406247821,64.30223062,130.56,130.53,5.65056818]
[1763406248123,4.64,130.56,130.53,6.30056818]
[1763406248328,4.64,130.56,130.53,5.65056818]
[1763406248554,18.12096,130.57,130.53,6.30056818]
[1763406248850,22.76096,130.57,130.54,10.43882769]
[1763406249020,22.76096,130.57,130.54,9.78882769]
[1763406249222,22.76096,130.57,130.54,10.43882769]
[1763406249521,4.64,130.57,130.54,10.43882769]
[1763406249717,18.12096,130.59,130.55,9.60223062]
[1763406250061,4.64,130.59,130.55,9.60223062]
[1763406250348,50.71,130.64,130.57,8.95223062]
[1763406250532,58.95223062,130.62,130.58,9.78882769]
[1763406250731,77.07319062,130.62,130.58,9.78882769]
[1763406250930,77.78319062,130.62,130.58,10.43882769]
[1763406251329,9.66223062,130.62,130.58,10.43882769]
[1763406251527,18.12096,130.61,130.58,10.43882769]
[1763406251722,0.71,130.62,130.58,19.39105831]
[1763406251929,31.71319062,130.63,130.58,19.39105831]
[1763406252151,31.71319062,130.63,130.59,0.7]
[1763406252357,27.76319062,130.63,130.59,0.7]
[1763406252561,32.40319062,130.63,130.59,0.7]
[1763406252848,37.51456062,130.63,130.59,0.7]
[1763406253049,23.45096,130.63,130.59,0.7]
[1763406253447,22.76096,130.63,130.59,0.7]
[1763406253654,37.51456062,130.63,130.59,0.7]
[1763406254145,19.39360062,130.63,130.59,0.7]
[1763406255134,18.70360062,130.63,130.59,0.7]
[1763406255339,14.06360062,130.61,130.56,0.7]
[1763406255540,64.06360062,130.6,130.56,0.7]
[1763406255849,14.06360062,130.57,130.55,9.78882769]
[1763406256147,14.06360062,130.58,130.54,0.7]
[1763406256347,14.06360062,130.58,130.55,0.7]
[1763406256528,14.75360062,130.58,130.54,10.48882769]
[1763406256732,14.06360062,130.59,130.55,0.7]
[1763406256925,14.06360062,130.59,130.53,5.65056818]
[1763406256926,50.0,130.58,130.53,5.65056818]
[1763406257127,64.75360062,130.58,130.54,9.78882769]
[1763406257352,0.69,130.57,130.54,9.78882769]
[1763406257940,32.18456062,130.58,130.54,10.50882769]
[1763406258143,14.06360062,130.59,130.55,0.72]
[1763406258329,14.06360062,130.59,130.56,9.78882769]
[1763406258529,64.73360062,130.58,130.53,6.37056818]
[1763406258724,0.67,130.57,130.54,9.78882769]
[1763406258947,64.73360062,130.58,130.54,9.78882769]
[1763406259333,14.06360062,130.59,130.55,0.72]
[1763406259535,64.06360062,130.58,130.55,0.72]
[1763406259736,64.06360062,130.58,130.54,9.78882769]
[1763406259946,50.67,130.58,130.54,10.50882769]
[1763406260155,64.73360062,130.58,130.54,10.50882769]
[1763406260852,64.06360062,130.56,130.53,5.65056818]
[1763406261159,68.70360062,130.56,130.53,6.37056818]
[1763406261350,0.67,130.55,130.53,5.65056818]
[1763406261537,68.70360062,130.56,130.53,5.65056818]
[1763406261853,0.67,130.55,130.53,5.65056818]
[1763406262066,14.73360062,130.55,130.53,5.65056818]
[1763406262246,0.67,130.55,130.53,5.65056818]
[1763406262832,64.06360062,130.56,130.53,5.65056818]
[1763406263160,18.12096,130.57,130.54,10.50882769]
[1763406263359,14.06360062,130.58,130.54,10.50882769]
[1763406263747,14.73360062,130.58,130.54,10.50882769]
[1763406264267,0.67,130.57,130.54,9.78882769]
[1763406264436,50.0,130.56,130.54,9.78882769]
[1763406264641,0.67,130.57,130.54,9.78882769]
[1763406264832,50.0,130.55,130.53,5.65056818]
[1763406265365,0.67,130.54,130.53,5.65056818]
[1763406265541,50.67,130.55,130.53,5.65056818]
[1763406267257,55.31,130.57,130.53,5.65056818]
[1763406267459,0.67,130.56,130.53,5.65056818]
[1763406268162,68.70360062,130.57,130.53,5.65056818]
[1763406268344,0.67,130.56,130.53,5.65056818]
[1763406268754,14.73360062,130.56,130.53,5.65056818]
[1763406269065,0.67,130.56,130.53,5.65056818]
[1763406270562,14.73360062,130.56,130.53,5.65056818]
[1763406270958,50.0,130.55,130.53,5.65056818]
[1763406271138,68.70360062,130.57,130.54,0.72]
[1763406271343,68.70360062,130.57,130.53,5.65056818]
[1763406271344,69.37360062,130.57,130.53,5.65056818]
[1763406271559,0.67,130.56,130.53,5.65056818]
[1763406272164,50.0,130.55,130.53,5.65056818]
[1763406272576,14.73360062,130.56,130.53,5.65056818]
[1763406272781,0.67,130.56,130.53,5.65056818]
[1763406273064,14.73360062,130.56,130.53,5.65056818]
[1763406273382,68.70360062,130.57,130.53,6.37056818]
[1763406273591,69.37360062,130.57,130.53,6.37056818]
[1763406275469,4.64,130.57,130.54,10.50882769]
[1763406275671,4.64,130.58,130.54,10.50882769]
[1763406275860,19.37360062,130.58,130.54,10.50882769]
[1763406276246,5.31,130.58,130.54,24.57242831]
[1763406277162,5.31,130.58,130.54,23.85242831]
[1763406277341,0.67,130.58,130.55,0.72]
[1763406277744,5.31,130.58,130.55,0.72]
[1763406278045,50.0,130.63,130.58,9.78882769]
[1763406278364,50.0,130.65,130.62,14.06360062]
[1763406278560,50.67,130.65,130.61,14.06360062]
[1763406278763,68.79096,130.65,130.61,14.06360062]
[1763406278972,18.79096,130.65,130.62,14.06360062]
[1763406279272,50.67,130.65,130.61,0.72]
[1763406279461,68.79096,130.65,130.63,14.06360062]
[1763406279660,68.79096,130.65,130.61,0.72]
[1763406279871,50.0,130.65,130.63,14.06360062]
[1763406280073,50.0,130.65,130.6,14.06360062]
[1763406280074,50.0,130.63,130.6,14.06360062]
[1763406280275,0.67,130.62,130.6,14.06360062]
[1763406280770,4.64,130.63,130.61,14.06360062]
[1763406280979,54.64,130.63,130.61,14.06360062]
[1763406281183,0.67,130.62,130.61,14.06360062]
[1763406281383,4.64,130.63,130.61,14.06360062]
[1763406281693,22.76096,130.63,130.62,14.06360062]
[1763406282293,4.64,130.63,130.62,14.06360062]
[1763406284582,152.7,130.67,130.62,24.54242831]
[1763406284895,152.7,130.67,130.64,14.06360062]
[1763406284896,5.36,130.66,130.64,14.06360062]
[1763406285269,102.7,130.67,130.64,14.06360062]
[1763406285478,55.36,130.67,130.65,14.06360062]
[1763406286588,55.36,130.67,130.64,14.06360062]
[1763406286991,55.36,130.67,130.63,0.69]
[1763406286992,54.64,130.67,130.63,0.69]
[1763406287186,55.36,130.67,130.64,14.06360062]
[1763406288372,55.36,130.67,130.6,9.78882769]
[1763406288373,50.72,130.66,130.62,14.06360062]
[1763406288580,50.0,130.66,130.64,14.06360062]
[1763406288789,50.72,130.66,130.63,14.06360062]
[1763406289591,50.0,130.66,130.63,14.06360062]
[1763406289776,50.72,130.66,130.64,14.06360062]
[1763406290188,50.0,130.64,130.63,14.06360062]
[1763406290405,50.0,130.64,130.61,0.69]
[1763406290614,54.64,130.64,130.62,14.06360062]
[1763406291708,54.64,130.64,130.61,0.69]
[1763406291885,54.64,130.64,130.58,9.78882769]
[1763406292092,4.64,130.64,130.63,14.06360062]
[1763406292907,50.72,130.64,130.59,0.69]
[1763406293090,50.0,130.64,130.62,14.06360062]
[1763406293398,50.0,130.62,130.59,14.06360062]
[1763406293607,50.0,130.6,130.56,9.78882769]
[1763406293800,50.0,130.6,130.57,14.06360062]
[1763406294008,50.72,130.6,130.58,14.06360062]
[1763406294176,0.72,130.59,130.57,14.06360062]
[1763406294579,50.0,130.6,130.57,14.06360062]
[1763406294803,50.0,130.6,130.58,14.06360062]
[1763406295108,73.48096,130.64,130.59,9.78882769]
[1763406295310,73.48096,130.64,130.61,14.06360062]
[1763406295513,73.48096,130.64,130.63,14.06360062]
[1763406295514,4.64,130.64,130.63,14.06360062]
[1763406295687,68.12096,130.66,130.63,14.06360062]
[1763406296195,18.84096,130.66,130.64,14.06360062]
[1763406296400,0.72,130.65,130.64,14.06360062]
[1763406296780,18.12096,130.66,130.64,14.06360062]
[1763406296983,18.84096,130.66,130.64,14.06360062]
[1763406297491,50.0,130.66,130.64,14.06360062]
[1763406297695,0.72,130.65,130.62,14.06360062]
[1763406297909,50.0,130.66,130.63,14.06360062]
[1763406298403,50.72,130.66,130.63,14.06360062]
[1763406298585,50.0,130.66,130.63,14.06360062]
[1763406298786,0.72,130.65,130.62,5.88692341]
[1763406299597,50.0,130.64,130.61,5.88692341]
[1763406299794,0.72,130.63,130.6,5.88692341]
[1763406300185,50.0,130.62,130.59,5.88692341]
[1763406300386,50.0,130.59,130.52,4.64]
[1763406300583,10.52692341,130.61,130.57,5.88692341]
[1763406300584,55.36,130.61,130.57,5.88692341]
[1763406300809,50.0,130.59,130.55,9.78882769]
[1763406301002,50.0,130.59,130.56,14.06846737]
[1763406301308,50.0,130.59,130.54,0.69]
[1763406301309,50.0,130.59,130.55,9.78882769]
[1763406301482,50.0,130.59,130.56,14.06846737]
[1763406301689,50.72,130.59,130.55,14.75846737]
[1763406302035,50.0,130.57,130.54,14.06846737]
[1763406302495,50.72,130.57,130.53,20.40903555]
[1763406303219,50.0,130.55,130.53,5.65056818]
[1763406304390,50.0,130.55,130.53,19.71903555]
[1763406304792,50.0,130.57,130.54,14.06846737]
[1763406304989,50.72,130.57,130.54,14.06846737]
[1763406308398,0.72,130.56,130.53,5.65056818]
[1763406308596,50.0,130.57,130.53,20.40903555]
[1763406308792,50.72,130.57,130.53,20.40903555]
[1763406309324,50.0,130.55,130.53,5.65056818]
[1763406310012,0.72,130.56,130.53,5.65056818]
[1763406310403,50.0,130.55,130.53,5.65056818]
[1763406311209,5.36,130.54,130.53,5.65056818]
[1763406313042,66.34707609,130.54,130.53,4.94056818]
[1763406313324,66.34707609,130.54,130.49,3.11230167]
[1763406313325,102.0,130.5,130.49,3.11230167]
[1763406313493,125.70204907,130.5,130.49,2.49230167]
[1763406313694,113.62707609,130.5,130.49,2.49230167]
[1763406313896,120.67095756,130.5,130.49,2.49230167]
[1763406314119,113.62707609,130.5,130.49,2.49230167]
[1763406314394,68.12096,130.5,130.49,2.49230167]
[1763406314600,81.74803609,130.5,130.49,2.49230167]
[1763406315424,72.76096,130.5,130.49,2.49230167]
[1763406316132,81.74803609,130.5,130.49,2.49230167]
[1763406316423,72.76096,130.5,130.49,2.49230167]
[1763406316722,81.74803609,130.5,130.49,2.49230167]
[1763406317338,104.64,130.5,130.49,2.49230167]
[1763406317562,113.62707609,130.5,130.49,2.49230167]
[1763406318332,50.0,130.42,130.4,0.1]
[1763406318529,8.98707609,130.41,130.4,0.1]
[1763406318711,54.64,130.42,130.4,0.1]
[1763406318910,54.64,130.42,130.4,0.76]
[1763406319130,63.62707609,130.42,130.4,0.1]
[1763406319628,4.64,130.42,130.4,0.76]
[1763406319809,54.64,130.44,130.4,0.76]
[1763406320012,50.0,130.42,130.4,0.76]
[1763406320213,50.0,130.47,130.4,0.76]
[1763406320424,50.0,130.42,130.4,0.76]
[1763406320620,50.0,130.47,130.41,18.77590378]
[1763406320826,50.0,130.47,130.4,0.76]
[1763406321036,50.0,130.47,130.43,18.77590378]
[1763406321209,50.0,130.51,130.47,9.78882769]
[1763406321415,50.0,130.55,130.51,9.78882769]
[1763406321618,50.0,130.53,130.52,8.98707609]
[1763406321939,50.0,130.53,130.52,9.64707609]
[1763406322110,4.64,130.56,130.52,9.64707609]
[1763406322301,50.0,130.55,130.54,8.98707609]
[1763406322725,50.0,130.53,130.45,18.12096]
[1763406322911,50.0,130.53,130.51,0.66]
[1763406323138,50.0,130.53,130.51,9.64707609]
[1763406323437,50.0,130.55,130.52,9.64707609]
[1763406323601,4.64,130.56,130.54,8.98707609]
[1763406323801,50.0,130.61,130.56,9.78882769]
[1763406324001,50.0,130.61,130.59,8.98707609]
[1763406324401,50.0,130.59,130.58,8.98707609]
[1763406324606,50.0,130.59,130.57,8.98707609]
[1763406324807,50.0,130.57,130.55,8.98707609]
[1763406325035,50.0,130.57,130.56,0.66]
[1763406325206,4.64,130.58,130.56,0.66]
[1763406325407,4.64,130.58,130.56,9.64707609]
[1763406325606,50.0,130.59,130.57,0.66]
[1763406326207,58.98707609,130.59,130.55,0.66]
[1763406326408,50.0,130.56,130.53,0.66]
[1763406326839,63.62707609,130.58,130.53,0.66]
[1763406327039,54.64,130.58,130.54,9.78882769]
[1763406327335,4.64,130.58,130.54,18.77590378]
[1763406327510,4.64,130.58,130.56,9.78882769]
[1763406327712,50.0,130.6,130.56,18.77590378]
[1763406328030,50.0,130.6,130.58,8.98707609]
[1763406328235,50.0,130.6,130.57,9.64707609]
[1763406328535,50.0,130.58,130.55,9.64707609]
[1763406328736,50.0,130.58,130.55,8.98707609]
[1763406329038,5.31,130.61,130.57,8.98707609]
[1763406329039,4.64,130.61,130.57,8.98707609]
[1763406329227,50.0,130.6,130.58,8.98707609]
[1763406329535,50.0,130.62,130.59,8.98707609]
[1763406329712,54.64,130.64,130.59,0.66]
[1763406329906,54.64,130.64,130.6,9.64707609]
[1763406330109,50.0,130.66,130.62,9.78882769]
[1763406330413,50.0,130.68,130.65,8.98707609]
[1763406330727,50.0,130.66,130.62,8.98707609]
[1763406330932,50.0,130.63,130.6,0.66]
[1763406331439,50.0,130.61,130.57,0.66]
[1763406331617,50.0,130.61,130.57,8.98707609]
[1763406331811,50.0,130.61,130.56,0.66]
[1763406331812,58.98707609,130.61,130.58,0.66]
[1763406332010,50.0,130.61,130.58,0.66]
[1763406332215,68.12096,130.65,130.59,8.98707609]
[1763406332527,50.0,130.67,130.63,8.98707609]
[1763406332737,63.62707609,130.69,130.64,8.98707609]
[1763406332957,58.98707609,130.66,130.61,18.78096]
[1763406333253,50.0,130.66,130.62,9.64707609]
[1763406333418,50.0,130.66,130.62,0.66]
[1763406333606,50.0,130.66,130.63,0.66]
[1763406333814,50.0,130.66,130.63,9.64707609]
[1763406334049,50.0,130.66,130.64,0.66]
[1763406334252,58.98707609,130.68,130.64,0.66]
[1763406334552,50.0,130.66,130.64,0.66]
[1763406335809,50.0,130.68,130.64,0.66]
[1763406336044,50.0,130.7,130.66,9.78882769]
[1763406336219,50.0,130.68,130.67,0.66]
[1763406336825,50.0,130.7,130.67,9.64707609]
[1763406337045,0.2,130.71,130.69,8.98707609]
[1763406337415,0.2,130.71,130.7,9.64707609]
[1763406338347,0.2,130.71,130.7,0.66]
[1763406339549,0.2,130.71,130.7,19.43590378]
[1763406340115,0.2,130.71,130.7,0.66]
[1763406340426,0.2,130.71,130.68,8.98707609]
[1763406340622,0.2,130.71,130.68,9.64707609]
[1763406340822,0.2,130.71,130.69,0.66]
[1763406341151,0.2,130.71,130.7,18.77590378]
[1763406341638,0.2,130.71,130.64,8.98707609]
[1763406341639,50.2,130.71,130.67,18.78096]
[1763406341837,50.2,130.71,130.67,8.98707609]
[1763406342040,50.0,130.68,130.63,0.66]
[1763406342341,9.65707609,130.7,130.63,0.66]
[1763406342342,50.0,130.66,130.63,0.66]
[1763406342546,50.0,130.68,130.63,9.64707609]
[1763406342746,58.98707609,130.68,130.63,9.64707609]
[1763406342926,59.65707609,130.68,130.64,0.66]
[1763406343125,50.0,130.68,130.64,9.64707609]
[1763406343334,50.0,130.68,130.64,0.66]
[1763406343528,50.0,130.68,130.65,0.66]
[1763406343723,50.0,130.7,130.66,8.98707609]
[1763406344235,58.98707609,130.7,130.66,0.66]
[1763406344441,58.98707609,130.7,130.67,0.66]
[1763406344746,50.0,130.7,130.67,0.66]
[1763406345130,58.98707609,130.7,130.67,0.66]
[1763406345631,0.2,130.71,130.69,8.98707609]
[1763406345830,0.2,130.71,130.7,18.77590378]
[1763406346027,50.0,130.77,130.71,9.78882769]
[1763406346222,50.0,130.77,130.73,9.78882769]
[1763406346421,50.0,130.77,130.74,8.98707609]
[1763406346645,0.2,130.78,130.75,8.98707609]
[1763406346842,50.0,130.77,130.75,8.98707609]
[1763406347023,50.0,130.75,130.74,8.98707609]
[1763406347347,50.0,130.77,130.74,8.98707609]
[1763406347759,0.2,130.78,130.76,8.98707609]
[1763406348048,0.2,130.78,130.77,8.98707609]
[1763406348351,0.2,130.78,130.77,9.64707609]
[1763406349054,50.2,130.78,130.74,9.78882769]
[1763406349242,50.2,130.78,130.76,8.98707609]
[1763406349445,50.2,130.78,130.75,9.64707609]
[1763406349641,0.2,130.78,130.77,8.98707609]
[1763406350546,50.0,130.77,130.75,8.98707609]
[1763406350728,0.2,130.78,130.75,8.98707609]
[1763406350930,0.2,130.78,130.77,8.98707609]
[1763406351348,0.2,130.78,130.77,9.64707609]
[1763406351729,0.2,130.78,130.77,8.98707609]
[1763406352043,0.2,130.78,130.77,9.64707609]
[1763406352242,0.2,130.78,130.77,8.98707609]
[1763406352552,50.2,130.78,130.76,8.98707609]
[1763406352935,50.2,130.78,130.76,9.64707609]
[1763406353248,50.2,130.78,130.77,8.98707609]
[1763406354129,50.2,130.78,130.76,0.66]
[1763406354444,50.87,130.78,130.76,8.98707609]
[1763406354744,50.2,130.78,130.76,8.98707609]
[1763406355356,0.2,130.78,130.77,9.64707609]
[1763406355668,0.2,130.78,130.77,0.66]
[1763406355855,0.2,130.78,130.77,8.98707609]
[1763406356456,50.2,130.78,130.75,0.66]
[1763406356636,0.2,130.78,130.77,18.77590378]
[1763406357157,0.2,130.78,130.77,8.98707609]
[1763406358945,0.2,130.78,130.77,9.64707609]
[1763406359345,0.2,130.79,130.78,9.78882769]
[1763406359544,50.0,130.84,130.78,19.43590378]
[1763406359760,50.0,130.84,130.77,14.42882769]
[1763406359963,50.0,130.84,130.82,8.98707609]
[1763406360464,50.0,130.84,130.68,18.12096]
[1763406360465,50.0,130.77,130.71,0.66]
[1763406360764,50.0,130.75,130.72,8.98707609]
[1763406360943,50.0,130.73,130.72,8.98707609]
[1763406361142,50.0,130.75,130.72,8.98707609]
[1763406361356,50.67,130.75,130.72,8.98707609]
[1763406361556,50.0,130.75,130.73,8.98707609]
[1763406361937,102.7,130.76,130.73,8.98707609]
[1763406362259,50.0,130.74,130.67,0.66]
[1763406362463,50.0,130.74,130.71,8.98707609]
[1763406362866,50.0,130.74,130.72,8.98707609]
[1763406363067,50.67,130.74,130.71,8.98707609]
[1763406363270,50.0,130.72,130.7,8.98707609]
[1763406363440,50.0,130.7,130.68,8.98707609]
[1763406363646,50.67,130.72,130.68,8.98707609]
[1763406364268,50.0,130.72,130.7,8.98707609]
[1763406364452,50.0,130.74,130.71,8.98707609]
[1763406364653,50.67,130.74,130.7,8.98707609]
[1763406364855,50.0,130.74,130.71,8.98707609]
[1763406365064,50.0,130.77,130.73,8.98707609]